bitfinex/quotes_BTCUSD_20241201
["timestamp","ask_amount","ask_price","bid_price","bid_amount"]
[1733041219223,0.023,96920.0,96919.0,0.27411326]
[1733041219484,0.023,96920.0,96913.0,0.48261185]
[1733041219720,0.023,96922.0,96914.0,0.00182611]
[1733041219943,0.023,96922.0,96921.0,0.27423602]
[1733041220637,0.023,96922.0,96914.0,0.40401185]
[1733041220835,0.023,96920.0,96915.0,0.0757378]
[1733041221536,0.206349,96923.0,96915.0,0.0757378]
[1733041221537,0.206353,96921.0,96915.0,0.0757378]
[1733041221760,0.023,96922.0,96915.0,0.00182611]
[1733041221983,0.023,96922.0,96921.0,0.27449764]
[1733041222635,0.023,96922.0,96913.0,0.48391293]
[1733041222912,0.023,96922.0,96914.0,0.075868]
[1733041223593,0.023,96923.0,96916.0,0.40531293]
[1733041223823,0.023,96923.0,96917.0,0.0018261]
[1733041224052,0.22935,96923.0,96918.0,0.0018261]
[1733041224268,0.22935,96923.0,96916.0,0.40531293]
[1733041224269,0.22935,96923.0,96919.0,0.05597809]
[1733041224719,0.22935,96923.0,96917.0,0.0018261]
[1733041226353,0.4357,96923.0,96917.0,0.40713903]
[1733041226577,0.206351,96922.0,96917.0,0.0018261]
[1733041226788,0.206353,96921.0,96917.0,0.0018261]
[1733041226995,0.206353,96921.0,96916.0,0.40531293]
[1733041226996,0.023,96920.0,96916.0,0.40531293]
[1733041227212,0.023,96920.0,96917.0,0.04053129]
[1733041228481,0.206357,96919.0,96917.0,0.40531293]
[1733041228686,0.023,96918.0,96917.0,0.40531293]
[1733041229352,0.023,96918.0,96916.0,0.0017266]
[1733041229582,0.229362,96917.0,96916.0,0.0017266]
[1733041230008,0.023,96917.0,96916.0,0.0017266]
[1733041230480,0.023,96918.0,96916.0,0.0017266]
[1733041230691,0.206357,96919.0,96916.0,0.0017266]
[1733041230955,0.023,96920.0,96916.0,0.0017266]
[1733041232034,0.206362,96917.0,96916.0,0.0017266]
[1733041232243,0.229362,96917.0,96916.0,0.0017266]
[1733041232469,0.23436977,96917.0,96916.0,0.0017266]
[1733041232914,0.0283311,96917.0,96916.0,0.0017266]
[1733041233351,0.0283311,96917.0,96916.0,0.40937831]
[1733041233566,0.0283311,96917.0,96916.0,0.04301975]
[1733041233778,0.0283311,96917.0,96916.0,0.0017266]
[1733041234446,0.0283311,96917.0,96916.0,0.40966042]
[1733041235315,0.0283311,96917.0,96916.0,0.0017266]
[1733041254875,0.1599311,96917.0,96916.0,0.0017266]
[1733041257441,0.0283311,96917.0,96916.0,0.0017266]
[1733041258071,0.0283311,96917.0,96916.0,0.0117266]
[1733041263782,0.029195,96917.0,96916.0,0.0117266]
[1733041275409,0.03373692,96917.0,96916.0,0.0117266]
[1733041275620,0.03126867,96917.0,96916.0,0.0117266]
[1733041276293,0.07706867,96917.0,96916.0,0.28840072]
[1733041276495,0.07706867,96917.0,96916.0,0.0117266]
[1733041276620,0.07968897,96917.0,96916.0,0.0117266]
[1733041278902,0.206364,96916.0,96914.0,0.27662827]
[1733041279099,0.206364,96916.0,96909.0,0.001727]
[1733041279100,0.206377,96910.0,96909.0,0.001727]
[1733041279305,0.43102221,96910.0,96909.0,0.001727]
[1733041279598,0.44103048,96910.0,96909.0,0.001727]
[1733041279801,0.45103048,96910.0,96909.0,0.001727]
[1733041280913,0.44849088,96910.0,96909.0,0.001727]
[1733041281126,0.47395151,96910.0,96909.0,0.001727]
[1733041281342,0.50617105,96910.0,96909.0,0.001727]
[1733041281552,0.47395151,96910.0,96909.0,0.001727]
[1733041282235,0.206423,96888.0,96886.0,0.23051159]
[1733041282440,0.1218,96887.0,96883.0,0.23051159]
[1733041282670,0.1218,96887.0,96875.0,0.27662827]
[1733041282671,0.13164787,96887.0,96886.0,0.00059599]
[1733041284525,0.15464787,96887.0,96886.0,0.00059599]
[1733041286602,0.15464787,96887.0,96886.0,0.00232379]
[1733041290271,0.00984787,96887.0,96886.0,0.00232379]
[1733041290493,0.00984787,96887.0,96886.0,0.01676257]
[1733041290729,0.206393,96903.0,96886.0,0.01676257]
[1733041290955,0.206393,96903.0,96891.0,0.206416]
[1733041291171,0.00982881,96902.0,96892.0,0.00182644]
[1733041291649,0.206393,96903.0,96892.0,0.00182644]
[1733041291929,0.023,96902.0,96892.0,0.00182644]
[1733041292645,0.023,96906.0,96894.0,0.22984418]
[1733041292872,0.023,96906.0,96895.0,0.26034306]
[1733041293100,0.023,96906.0,96895.0,0.69659524]
[1733041293101,0.023,96904.0,96895.0,0.69659524]
[1733041293613,0.023,96902.0,96895.0,0.28377924]
[1733041293835,0.023,96902.0,96895.0,0.28370613]
[1733041294285,0.023,96900.0,96895.0,0.23159747]
[1733041294501,0.023,96904.0,96895.0,0.23159747]
[1733041294763,0.00985616,96899.0,96896.0,0.22977107]
[1733041294985,0.023,96898.0,96897.0,0.00182643]
[1733041295198,0.03285616,96898.0,96897.0,0.00182643]
[1733041295446,0.023,96904.0,96897.0,0.00182643]
[1733041295976,0.023,96902.0,96898.0,0.00182642]
[1733041296440,0.206391,96903.0,96898.0,0.00182642]
[1733041296678,0.00988599,96901.0,96898.0,0.00182642]
[1733041296907,0.206391,96903.0,96898.0,0.00182642]
[1733041297248,0.023,96899.0,96895.0,0.22976638]
[1733041297475,0.206381,96908.0,96895.0,0.22976638]
[1733041297696,0.023,96897.0,96895.0,0.22976638]
[1733041298120,0.023,96903.0,96895.0,0.22976638]
[1733041298339,0.023,96903.0,96898.0,0.0017278]
[1733041298562,0.00988599,96902.0,96898.0,0.0017278]
[1733041299012,0.023,96901.0,96899.0,0.00182643]
[1733041299456,0.023,96903.0,96899.0,0.00182643]
[1733041299681,0.03288599,96900.0,96899.0,0.00182643]
[1733041299959,0.03288872,96900.0,96899.0,0.00182643]
[1733041302495,0.03288872,96900.0,96899.0,0.15576302]
[1733041302699,0.2072229,96919.0,96899.0,0.38557472]
[1733041302909,0.2072229,96919.0,96906.0,0.206385]
[1733041303119,0.00988599,96916.0,96907.0,0.00182616]
[1733041303344,0.00988599,96916.0,96908.0,0.00182616]
[1733041304143,0.023,96915.0,96908.0,0.04562865]
[1733041304359,0.023,96915.0,96909.0,0.00182616]
[1733041304806,0.023,96918.0,96909.0,0.00182616]
[1733041305030,0.023,96913.0,96909.0,0.00182616]
[1733041305247,0.023,96918.0,96909.0,0.00182616]
[1733041305465,0.023,96918.0,96910.0,0.00182617]
[1733041305679,0.023,96915.0,96910.0,0.00182617]
[1733041306128,0.00988599,96914.0,96910.0,0.00182617]
[1733041306354,0.00988599,96914.0,96911.0,0.00182617]
[1733041306355,0.023,96913.0,96911.0,0.00182617]
[1733041306578,0.023,96918.0,96911.0,0.00182617]
[1733041306826,0.03288599,96912.0,96911.0,0.00182617]
[1733041307045,0.023,96912.0,96911.0,0.00182617]
[1733041307298,0.023,96918.0,96911.0,0.00182617]
[1733041307549,0.023,96918.0,96912.0,0.00182616]
[1733041307771,0.023,96915.0,96913.0,0.00182616]
[1733041307983,0.023,96915.0,96908.0,0.00182617]
[1733041308201,0.023,96918.0,96908.0,0.00182617]
[1733041308419,0.023,96913.0,96908.0,0.00182617]
[1733041308865,0.023,96911.0,96908.0,0.00182617]
[1733041309090,0.023,96911.0,96909.0,0.00182617]
[1733041309289,0.023,96918.0,96909.0,0.00182617]
[1733041309549,0.00989729,96916.0,96909.0,0.00182617]
[1733041309781,0.023,96915.0,96909.0,0.00182617]
[1733041310021,0.023,96915.0,96910.0,0.00182617]
[1733041310248,0.023,96918.0,96910.0,0.00182617]
[1733041310699,0.023,96915.0,96910.0,0.00182617]
[1733041311114,0.023,96918.0,96911.0,0.00182617]
[1733041311324,0.023,96913.0,96911.0,0.00182617]
[1733041311787,0.023,96918.0,96911.0,0.00182617]
[1733041312011,0.023,96915.0,96911.0,0.00182617]
[1733041312203,0.023,96915.0,96912.0,0.00182613]
[1733041312326,0.023,96913.0,96912.0,0.00182613]
[1733041312747,0.03290003,96913.0,96912.0,0.00182613]
[1733041313187,0.00990003,96913.0,96908.0,0.0018262]
[1733041313400,0.023,96912.0,96907.0,0.22985596]
[1733041313631,0.00989729,96911.0,96908.0,0.00182617]
[1733041313885,0.023,96910.0,96908.0,0.00182617]
[1733041314119,0.023,96915.0,96908.0,0.00182617]
[1733041314340,0.03289729,96909.0,96908.0,0.00182617]
[1733041314560,0.023,96915.0,96906.0,0.00182625]
[1733041314785,0.023,96908.0,96906.0,0.00182625]
[1733041315014,0.023,96908.0,96905.0,0.22992408]
[1733041315015,0.00989729,96907.0,96905.0,0.22992408]
[1733041315252,0.023,96906.0,96905.0,0.22992408]
[1733041315926,0.023,96915.0,96905.0,0.22992408]
[1733041316409,0.023,96913.0,96905.0,0.22992408]
[1733041316592,0.023,96913.0,96906.0,0.22992408]
[1733041316811,0.00989729,96912.0,96905.0,0.22992408]
[1733041317033,0.023,96915.0,96905.0,0.22992408]
[1733041317236,0.023,96915.0,96906.0,0.00182624]
[1733041317470,0.023,96915.0,96906.0,0.23175032]
[1733041318577,0.023,96915.0,96905.0,0.18175032]
[1733041318812,0.023,96915.0,96906.0,0.00090691]
[1733041319264,0.023,96913.0,96899.0,0.00090691]
[1733041319486,0.023,96915.0,96899.0,0.00090691]
[1733041321691,0.023,96915.0,96905.0,0.001728]
[1733041321904,0.023,96913.0,96906.0,0.00090696]
[1733041322124,0.023,96915.0,96906.0,0.00090696]
[1733041322348,0.023,96911.0,96906.0,0.00090696]
[1733041322602,0.023,96915.0,96906.0,0.00090696]
[1733041322821,0.00992203,96910.0,96906.0,0.00090696]
[1733041323033,0.023,96909.0,96906.0,0.00090696]
[1733041323251,0.00992203,96908.0,96906.0,0.00090696]
[1733041323489,0.023,96915.0,96906.0,0.00090696]
[1733041323708,0.023,96913.0,96906.0,0.00090696]
[1733041324124,0.023,96911.0,96906.0,0.00090696]
[1733041324538,0.023,96915.0,96906.0,0.00090696]
[1733041324759,0.1297,96916.0,96906.0,0.00090696]
[1733041324760,0.023,96909.0,96906.0,0.00090696]
[1733041325204,0.023,96907.0,96906.0,0.00090696]
[1733041325631,0.03292477,96907.0,96906.0,0.00090696]
[1733041325850,0.023,96915.0,96906.0,0.00090696]
[1733041326078,0.00992203,96914.0,96906.0,0.00090696]
[1733041326295,0.023,96913.0,96906.0,0.00090696]
[1733041326548,0.023,96915.0,96906.0,0.00090696]
[1733041326966,0.023,96911.0,96906.0,0.23093009]
[1733041327192,0.023,96913.0,96907.0,0.23002313]
[1733041327398,0.023,96915.0,96908.0,0.00090696]
[1733041327636,0.206377,96910.0,96908.0,0.00090696]
[1733041327886,0.023,96909.0,96907.0,0.23002313]
[1733041328109,0.03292203,96909.0,96907.0,0.23002313]
[1733041328545,0.03292203,96909.0,96908.0,0.23002313]
[1733041329451,0.03292203,96909.0,96905.0,0.001728]
[1733041329664,0.03292203,96909.0,96908.0,0.23003999]
[1733041330380,0.03292203,96909.0,96905.0,0.001728]
[1733041330617,0.03292203,96909.0,96906.0,0.00090709]
[1733041332647,0.023,96907.0,96906.0,0.00090709]
[1733041332867,0.023,96907.0,96905.0,0.00263514]
[1733041333137,0.03292477,96907.0,96905.0,0.00263514]
[1733041333348,0.023,96907.0,96906.0,0.00090711]
[1733041333590,0.023,96909.0,96906.0,0.00090711]
[1733041333809,0.023864,96910.0,96907.0,0.00090707]
[1733041335167,0.023,96908.0,96907.0,0.00090707]
[1733041335388,0.023864,96910.0,96907.0,0.27625451]
[1733041336034,0.023864,96910.0,96908.0,0.27625451]
[1733041336488,0.023864,96910.0,96909.0,0.27625451]
[1733041337393,0.023864,96910.0,96905.0,0.001728]
[1733041337610,0.023864,96910.0,96909.0,0.27655972]
[1733041337860,0.023864,96910.0,96905.0,0.001728]
[1733041338090,0.023864,96910.0,96909.0,0.27654979]
[1733041338518,0.023864,96910.0,96905.0,0.001728]
[1733041338519,0.023,96908.0,96905.0,0.001728]
[1733041338736,0.023,96908.0,96906.0,0.00090712]
[1733041339173,0.206383,96907.0,96906.0,0.00090712]
[1733041339368,0.206383,96907.0,96905.0,0.00263516]
[1733041339860,0.023864,96910.0,96905.0,0.00263516]
[1733041340080,0.023,96908.0,96906.0,0.00090707]
[1733041342546,0.023,96907.0,96906.0,0.00090707]
[1733041343020,0.023,96908.0,96906.0,0.00090707]
[1733041343730,0.000864,96910.0,96906.0,0.00090707]
[1733041343731,0.000864,96910.0,96906.0,0.04790707]
[1733041343941,0.000864,96910.0,96907.0,0.00090699]
[1733041344171,0.023864,96910.0,96907.0,0.00090699]
[1733041344405,0.023,96908.0,96907.0,0.00090699]
[1733041344650,0.023,96908.0,96906.0,0.00090712]
[1733041345536,0.023864,96910.0,96906.0,0.00263512]
[1733041346448,0.206379,96909.0,96906.0,0.00263512]
[1733041346663,0.023,96908.0,96906.0,0.00263512]
[1733041347733,0.023864,96910.0,96906.0,0.00263512]
[1733041347919,0.023,96908.0,96906.0,0.00263512]
[1733041348134,0.00993436,96907.0,96906.0,0.00263512]
[1733041348384,0.03293436,96907.0,96906.0,0.00263512]
[1733041348591,0.03293436,96907.0,96906.0,0.41096084]
[1733041348778,0.03293436,96907.0,96906.0,0.41005372]
[1733041349968,0.03293436,96907.0,96906.0,0.41007384]
[1733041350403,0.03293436,96907.0,96906.0,0.001728]
[1733041350627,0.03293436,96907.0,96906.0,0.00263513]
[1733041354201,0.23931736,96907.0,96906.0,0.00263513]
[1733041354414,0.23931736,96907.0,96906.0,0.001728]
[1733041354415,0.23543765,96907.0,96906.0,0.001728]
[1733041354872,0.23919575,96907.0,96906.0,0.001728]
[1733041355319,0.23919575,96907.0,96906.0,0.41001129]
[1733041357395,0.23919575,96907.0,96906.0,0.001728]
[1733041357537,0.23919575,96907.0,96906.0,0.41004518]
[1733041357961,0.23919575,96907.0,96906.0,0.41005309]
[1733041358189,0.23919575,96907.0,96906.0,0.001728]
[1733041358402,0.23919575,96907.0,96906.0,0.41005309]
[1733041360443,0.23919575,96907.0,96906.0,0.001728]
[1733041360950,0.23919575,96907.0,96906.0,0.41007439]
[1733041361386,0.23919575,96907.0,96906.0,0.001728]
[1733041361603,0.23919575,96907.0,96906.0,0.41007439]
[1733041362493,0.23919575,96907.0,96906.0,0.001728]
[1733041367913,0.23919575,96907.0,96906.0,0.41007439]
[1733041368493,0.23919575,96907.0,96906.0,0.45125463]
[1733041369254,0.24005975,96907.0,96906.0,0.41007439]
[1733041369458,0.03367675,96907.0,96906.0,0.41007439]
[1733041369707,0.023864,96907.0,96906.0,0.41007439]
[1733041369932,0.000864,96907.0,96906.0,0.41007439]
[1733041370166,0.0336738,96907.0,96906.0,0.41007439]
[1733041373404,0.0336738,96907.0,96906.0,0.42240098]
[1733041373630,0.0336738,96907.0,96906.0,0.41007439]
[1733041380859,0.0336738,96907.0,96906.0,0.4100937]
[1733041385155,0.000864,96907.0,96906.0,0.4100937]
[1733041385407,0.023864,96907.0,96906.0,0.4100937]
[1733041385615,0.000864,96907.0,96906.0,0.41012129]
[1733041386034,0.03367759,96907.0,96906.0,0.41012129]
[1733041386253,0.023864,96907.0,96906.0,0.41012129]
[1733041386470,0.01067759,96907.0,96906.0,0.001728]
[1733041386704,0.03367759,96907.0,96906.0,0.00263512]
[1733041386923,0.03367759,96907.0,96906.0,0.001728]
[1733041387133,0.03367759,96907.0,96906.0,0.00263513]
[1733041389493,0.03367759,96907.0,96906.0,0.001728]
[1733041390081,0.03367759,96907.0,96906.0,0.00263511]
[1733041396514,0.03367759,96907.0,96906.0,0.001728]
[1733041397220,0.03367759,96907.0,96906.0,0.00263512]
[1733041404605,0.0290278,96907.0,96906.0,0.001728]
[1733041407692,0.0290278,96907.0,96906.0,0.006728]
[1733041408110,0.0070278,96907.0,96906.0,0.013728]
[1733041408370,0.001864,96907.0,96906.0,0.013728]
[1733041409226,0.001864,96907.0,96906.0,0.01463469]
[1733041410635,0.001864,96907.0,96906.0,0.00963469]
[1733041411106,0.002864,96907.0,96906.0,0.01863469]
[1733041411900,0.001864,96907.0,96906.0,0.01163469]
[1733041412109,0.001864,96907.0,96906.0,0.01963469]
[1733041413161,0.07718348,96907.0,96906.0,0.018728]
[1733041413377,0.03008348,96907.0,96906.0,0.01963527]
[1733041413591,0.024864,96907.0,96906.0,0.01963527]
[1733041413801,0.001864,96907.0,96906.0,0.01963527]
[1733041434783,0.0070929,96907.0,96906.0,0.01963527]
[1733041446403,0.0070929,96907.0,96906.0,0.018728]
[1733041449044,0.0070929,96907.0,96906.0,0.01963496]
[1733041456949,0.0070929,96907.0,96906.0,0.01963496]
[1733041457628,0.0070929,96907.0,96906.0,0.018728]
[1733041457629,0.0300929,96907.0,96906.0,0.018728]
[1733041457844,0.0786929,96907.0,96906.0,0.018728]
[1733041461290,0.0300929,96907.0,96906.0,0.018728]
[1733041461733,0.02835019,96907.0,96906.0,0.018728]
[1733041463326,0.02835019,96907.0,96906.0,0.42698524]
[1733041463543,0.02835019,96907.0,96906.0,0.018728]
[1733041471751,0.07675019,96907.0,96906.0,0.018728]
[1733041485145,0.07675019,96907.0,96906.0,0.4270339]
[1733041485577,0.07675019,96907.0,96906.0,0.018728]
[1733041486724,0.07913351,96907.0,96906.0,0.018728]
[1733041486946,0.07913351,96907.0,96906.0,0.42701206]
[1733041487170,0.07913351,96907.0,96906.0,0.018728]
[1733041489716,0.16053351,96907.0,96906.0,0.018728]
[1733041491679,0.16053351,96907.0,96906.0,0.29524167]
[1733041492910,0.16053351,96907.0,96906.0,0.018728]
[1733041503778,0.1641531,96907.0,96906.0,0.018728]
[1733041505845,0.16643634,96907.0,96906.0,0.018728]
[1733041506513,0.16543634,96907.0,96906.0,0.009728]
[1733041506721,0.16643634,96907.0,96906.0,0.015728]
[1733041507182,0.16643634,96907.0,96906.0,0.007728]
[1733041507432,0.16643634,96907.0,96906.0,0.011728]
[1733041513449,0.16643634,96907.0,96898.0,0.0017278]
[1733041513450,0.0719,96899.0,96898.0,0.0017278]
[1733041513660,0.17702872,96899.0,96898.0,0.0017278]
[1733041513868,0.18648246,96899.0,96898.0,0.0017278]
[1733041514319,0.26768246,96899.0,96898.0,0.0017278]
[1733041514584,0.26639895,96899.0,96898.0,0.0077278]
[1733041515466,0.26739895,96899.0,96898.0,0.0167278]
[1733041517855,0.21849895,96899.0,96898.0,0.0629278]
[1733041518113,0.01145374,96899.0,96898.0,0.0167278]
[1733041518377,0.002,96899.0,96898.0,0.01763516]
[1733041518619,0.002,96899.0,96898.0,0.4255395]
[1733041518837,0.002,96899.0,96898.0,0.42463214]
[1733041519700,0.025,96899.0,96898.0,0.42463214]
[1733041522268,0.025,96899.0,96898.0,0.0167278]
[1733041522492,0.025,96899.0,96898.0,0.0176352]
[1733041526933,0.025,96899.0,96898.0,0.07356322]
[1733041527471,0.025,96899.0,96898.0,0.0176352]
[1733041533732,0.025,96899.0,96898.0,0.0167278]
[1733041537921,0.0711,96899.0,96898.0,0.0167278]
[1733041540844,0.08066293,96899.0,96898.0,0.0167278]
[1733041541905,0.36636293,96899.0,96898.0,0.0167278]
[1733041542316,0.36636293,96899.0,96898.0,0.29286648]
[1733041542522,0.36636293,96899.0,96898.0,0.0167278]
[1733041543028,0.41983298,96899.0,96898.0,0.0167278]
[1733041543236,0.36636293,96899.0,96898.0,0.0167278]
[1733041543448,0.03456293,96899.0,96898.0,0.0639278]
[1733041543653,0.03456293,96899.0,96898.0,0.0167278]
[1733041544100,0.025,96899.0,96898.0,0.0167278]
[1733041544337,0.03353081,96899.0,96898.0,0.0107278]
[1733041544548,0.002,96899.0,96898.0,0.0167278]
[1733041544753,0.025,96899.0,96898.0,0.0167278]
[1733041544980,0.024,96899.0,96898.0,0.0077278]
[1733041545233,0.023,96901.0,96898.0,0.0017278]
[1733041545442,0.001,96899.0,96898.0,0.0197278]
[1733041545667,0.001,96899.0,96898.0,0.0107278]
[1733041545886,0.023,96903.0,96898.0,0.0017278]
[1733041546112,0.023,96903.0,96900.0,0.27611539]
[1733041546362,0.023,96901.0,96900.0,0.27611539]
[1733041546806,0.03253081,96901.0,96900.0,0.27611539]
[1733041547287,0.03253081,96901.0,96900.0,0.30569971]
[1733041547985,0.03253081,96901.0,96900.0,0.27611539]
[1733041548651,0.03253081,96901.0,96900.0,0.29211539]
[1733041548874,0.03253081,96901.0,96900.0,0.016]
[1733041549124,0.03253081,96901.0,96900.0,0.29211987]
[1733041549338,0.03253081,96901.0,96900.0,0.016]
[1733041551365,0.03253081,96901.0,96900.0,0.0585436]
[1733041551587,0.03253081,96901.0,96900.0,0.016]
[1733041554064,0.15693081,96901.0,96900.0,0.016]
[1733041558055,0.15693081,96901.0,96900.0,0.29214044]
[1733041559826,0.15693081,96901.0,96900.0,0.29215164]
[1733041560551,0.15693081,96901.0,96900.0,0.016]
[1733041568842,0.15693081,96901.0,96900.0,0.29229567]
[1733041571780,0.15693081,96901.0,96900.0,0.016]
[1733041572445,0.15693081,96901.0,96900.0,0.0177276]
[1733041573541,0.15921418,96901.0,96900.0,0.0177276]
[1733041573757,0.26205939,96901.0,96900.0,0.0177276]
[1733041573972,0.25977602,96901.0,96900.0,0.1677276]
[1733041575225,0.26977602,96901.0,96900.0,0.1677276]
[1733041575438,0.41977602,96901.0,96900.0,0.1677276]
[1733041575639,0.45201749,96901.0,96900.0,0.1677276]
[1733041575884,0.45201749,96901.0,96900.0,0.1587276]
[1733041576151,0.45201749,96901.0,96900.0,0.1517276]
[1733041576574,0.45201749,96901.0,96900.0,0.1567276]
[1733041576993,0.45201749,96901.0,96900.0,0.1517276]
[1733041577407,0.45201749,96901.0,96900.0,0.1537276]
[1733041577850,0.45301749,96901.0,96900.0,0.1617276]
[1733041578057,0.45201749,96901.0,96900.0,0.1537276]
[1733041578282,0.41977602,96901.0,96900.0,0.1537276]
[1733041578491,0.41977602,96901.0,96900.0,0.0948076]
[1733041578698,0.47324607,96901.0,96900.0,6e-07]
[1733041578913,0.41977602,96901.0,96900.0,6e-07]
[1733041579820,0.033,96899.0,96898.0,0.0017278]
[1733041580052,0.41522925,96899.0,96898.0,0.0017278]
[1733041580281,0.42075491,96899.0,96898.0,8e-07]
[1733041581621,0.42775491,96899.0,96898.0,0.0010008]
[1733041583585,0.43175491,96899.0,96898.0,0.0010008]
[1733041588077,0.35225491,96899.0,96898.0,0.0010008]
[1733041588319,0.12165491,96899.0,96898.0,0.0010008]
[1733041588561,0.12393855,96899.0,96898.0,0.0010008]
[1733041588829,0.02109334,96899.0,96898.0,0.0010008]
[1733041589114,0.206392,96903.0,96898.0,8e-07]
[1733041589327,0.206348,96924.0,96898.0,8e-07]
[1733041589540,1.5797,97922.0,96898.0,8e-07]
[1733041590296,0.0291423,97100.0,96923.0,0.5484]
[1733041590548,0.00021859,97136.0,97126.0,0.01]
[1733041590785,0.00551136,97226.0,97127.0,0.65124521]
[1733041591058,0.00551136,97226.0,97181.0,0.5788223]
[1733041591300,0.3,97263.0,97148.0,0.6233471]
[1733041591301,0.09294521,97199.0,97193.0,0.205774]
[1733041591557,0.00482955,97363.0,97182.0,1.6691709]
[1733041591558,0.04396995,97198.0,97194.0,0.2755774]
[1733041591786,0.06676433,97332.0,97194.0,0.2755774]
[1733041591787,0.205,97343.0,97341.0,1e-08]
[1733041592088,0.04639995,97322.0,97288.0,0.56990615]
[1733041592300,0.1583,97305.0,97295.0,0.07897123]
[1733041592559,0.657936,97304.0,97303.0,0.37106168]
[1733041592827,0.0487,97296.0,97206.0,0.54684912]
[1733041593049,0.1291,97235.0,97188.0,0.43432004]
[1733041593320,3.76380912,97234.0,97186.0,0.05167525]
[1733041593551,5.17722489,97233.0,97188.0,1.03255651]
[1733041593778,0.01,97203.0,97190.0,0.02426427]
[1733041594007,6.84501593,97202.0,97191.0,0.00111039]
[1733041594261,6.84501593,97202.0,97188.0,0.00059644]
[1733041594262,0.66812484,97197.0,97188.0,0.00059644]
[1733041594481,0.10284521,97189.0,97188.0,0.00059644]
[1733041594743,6.62475247,97189.0,97188.0,0.00059644]
[1733041595007,8.50206548,97189.0,97188.0,0.00059644]
[1733041595259,0.01,97177.0,97155.0,0.00091158]
[1733041595499,6.40679878,97176.0,97171.0,0.00059706]
[1733041595721,4.73648668,97175.0,97172.0,0.30866521]
[1733041595969,4.73648668,97174.0,97173.0,0.03092623]
[1733041596188,3.15117466,97174.0,97173.0,2.15157144]
[1733041596420,1.55421076,97174.0,97173.0,3.70157144]
[1733041596642,8.5e-07,97174.0,97173.0,4.09694521]
[1733041596938,0.48565583,97232.0,97224.0,0.205709]
[1733041597166,1.05741044,97270.0,97199.0,0.15]
[1733041597167,0.01,97282.0,97231.0,0.10284521]
[1733041597395,0.1789509,97298.0,97228.0,0.525]
[1733041597396,0.1789509,97298.0,97244.0,0.10284521]
[1733041597627,0.00027834,97291.0,97284.0,0.205582]
[1733041597861,0.0002,97289.0,97285.0,4.33253903]
[1733041598089,0.0002,97289.0,97285.0,3.79063294]
[1733041598338,0.0002,97289.0,97237.0,0.2545]
[1733041598339,0.01,97255.0,97189.0,0.01090419]
[1733041598737,0.01,97231.0,97201.0,0.10284521]
[1733041598743,0.01,97216.0,97200.0,2.26079831]
[1733041599003,0.01,97222.0,97210.0,0.205738]
[1733041599239,0.01,97203.0,97202.0,0.5484]
[1733041599511,0.11284521,97203.0,97202.0,0.5484]
[1733041599735,0.02,97201.0,97200.0,0.5484]
[1733041599963,0.02,97200.0,97199.0,0.0005978]
[1733041600186,0.12284521,97200.0,97199.0,0.0005978]
[1733041600406,0.12512154,97200.0,97199.0,0.0005978]
[1733041600643,0.14812154,97200.0,97199.0,0.0005978]
[1733041601115,0.11284521,97200.0,97199.0,0.0005978]
[1733041601397,0.14584521,97200.0,97199.0,0.0005978]
[1733041601895,0.14584521,97200.0,97156.0,0.00091126]
[1733041601896,0.01,97184.0,97156.0,0.00091126]
[1733041602150,0.11284521,97184.0,97159.0,0.205847]
[1733041602394,0.00227656,97199.0,97183.0,0.207595]
[1733041602395,0.01,97199.0,97183.0,0.207595]
[1733041602667,0.00060033,97200.0,97198.0,0.205765]
[1733041602897,0.00060033,97200.0,97184.0,0.10284521]
[1733041603145,0.00060033,97200.0,97183.0,0.0018]
[1733041603366,0.01,97196.0,97184.0,0.0009106]
[1733041603617,0.00060033,97200.0,97184.0,0.2067056]
[1733041603840,0.01,97196.0,97184.0,0.0009106]
[1733041604076,0.10284521,97195.0,97184.0,0.0009106]
[1733041604324,0.01,97196.0,97184.0,0.0009106]
[1733041604577,0.11284521,97196.0,97184.0,0.0009106]
[1733041604824,0.01,97189.0,97185.0,0.00091088]
[1733041605050,0.10284521,97189.0,97183.0,0.0018]
[1733041605275,0.00060033,97200.0,97183.0,0.0018]
[1733041605276,0.01,97196.0,97183.0,0.0018]
[1733041605527,0.00060033,97200.0,97195.0,0.5384]
[1733041605751,0.01,97196.0,97195.0,0.5384]
[1733041605982,0.01,97189.0,97184.0,0.5384]
[1733041606216,0.10284521,97188.0,97184.0,0.5384]
[1733041607384,0.00287688,97200.0,97185.0,0.5384]
[1733041607608,0.10284521,97199.0,97186.0,0.5384]
[1733041607871,0.01,97197.0,97186.0,0.5384]
[1733041608092,0.10284521,97196.0,97186.0,0.5384]
[1733041609233,0.041194,97195.0,97186.0,0.5384]
[1733041609449,0.10284521,97194.0,97186.0,0.5384]
[1733041610826,0.01,97187.0,97186.0,0.5384]
[1733041611055,0.10284521,97187.0,97183.0,0.0018]
[1733041611281,0.041194,97195.0,97184.0,0.00189917]
[1733041611512,0.0008613,97199.0,97184.0,0.00091137]
[1733041611792,0.10284521,97198.0,97184.0,0.00091137]
[1733041612479,0.0049813,97199.0,97184.0,0.00091137]
[1733041612726,0.01,97215.0,97205.0,0.54281837]
[1733041612953,0.004118,97211.0,97205.0,0.54281837]
[1733041613177,0.10284521,97210.0,97205.0,0.54281837]
[1733041613402,0.20801898,97209.0,97205.0,0.54281837]
[1733041613630,0.205746,97207.0,97205.0,0.54281837]
[1733041613850,0.10284521,97206.0,97205.0,0.54281837]
[1733041614103,0.11512131,97206.0,97205.0,0.46471837]
[1733041614365,0.26512131,97206.0,97205.0,0.46471837]
[1733041614588,0.28584521,97206.0,97205.0,0.46471837]
[1733041615253,0.10284521,97206.0,97205.0,0.46471837]
[1733041615485,0.11284521,97206.0,97205.0,0.46471837]
[1733041616921,0.13584521,97206.0,97205.0,0.46471837]
[1733041617152,0.28584521,97206.0,97205.0,0.46471837]
[1733041618899,0.25284521,97206.0,97205.0,0.46471837]
[1733041619119,0.11284521,97206.0,97205.0,0.46471837]
[1733041619570,0.205743,97209.0,97207.0,0.36187316]
[1733041619809,0.30858021,97212.0,97210.0,0.36187316]
[1733041620050,0.15,97211.0,97210.0,0.36187316]
[1733041621464,0.04119,97213.0,97210.0,0.36187316]
[1733041621707,0.15,97215.0,97210.0,0.36187316]
[1733041622007,0.205731,97214.0,97210.0,0.36187316]